fUST/lending_fUST_20250704
["ID","MTS","AMOUNT","RATE_DAILY","PERIOD"]
[369504482,1751602239941,-460.0,0.00016438,2]
[369504483,1751602239952,-460.0,0.00016438,2]
[369504484,1751602239962,-425.46467132,0.00016438,2]
[369504485,1751602239971,-460.0,0.00016438,2]
[369504486,1751602239980,-2650.48,0.00016438,2]
[369504487,1751602239990,-460.0,0.00016438,2]
[369504488,1751602240000,-612.61,0.00016438,2]
[369504489,1751602240010,-580.98,0.00016438,2]
[369504490,1751602240021,-460.0,0.00016438,2]
[369504491,1751602240030,-460.0,0.00016438,2]
[369504492,1751602240040,-460.0,0.00016438,2]
[369504493,1751602240049,-1090.47,0.00016438,2]
[369504494,1751602240059,-470.7210667,0.00016438,2]
[369504495,1751602240069,-3588.53,0.00016438,2]
[369504496,1751602240079,-464.79837109,0.00016438,2]
[369504497,1751602240089,-465.01475165,0.00016438,2]
[369504498,1751602240099,-460.0,0.00016438,2]
[369504499,1751602240110,-1026.85,0.00016438,2]
[369504500,1751602240120,-1026.85,0.00016438,2]
[369504501,1751602240131,-1026.85,0.00016438,2]
[369504502,1751602240142,-1026.85,0.00016438,2]
[369504503,1751602240152,-1026.85,0.00016438,2]
[369504504,1751602240162,-1026.85,0.00016438,2]
[369504505,1751602240172,-1026.85,0.00016438,2]
[369504506,1751602240182,-1026.85,0.00016438,2]
[369504507,1751602240192,-1026.85,0.00016438,2]
[369504508,1751602240201,-1026.85,0.00016438,2]
[369504510,1751602240211,-1026.85,0.00016438,2]
[369504512,1751602240221,-1026.85,0.00016438,2]
[369504513,1751602240230,-1026.85,0.00016438,2]
[369504514,1751602240239,-1026.85,0.00016438,2]
[369504515,1751602240249,-1026.85,0.00016438,2]
[369504516,1751602240259,-589.73,0.00016438,2]
[369504517,1751602240268,-460.0,0.00016438,2]
[369504518,1751602240278,-1026.85,0.00016438,2]
[369504519,1751602240288,-460.0,0.00016438,2]
[369504520,1751602240298,-531.15,0.00016438,2]
[369504521,1751602240308,-545.72,0.00016438,2]
[369504522,1751602240317,-460.0,0.00016438,2]
[369504523,1751602240327,-461.23071578,0.00016438,2]
[369504524,1751602240336,-2245.79,0.00016438,2]
[369504525,1751602240346,-460.0,0.00016438,2]
[369504526,1751602240355,-460.0,0.00016438,2]
[369504527,1751602240365,-460.0,0.00016438,2]
[369504528,1751602240374,-676.74,0.00016438,2]
[369504529,1751602240384,-460.0,0.00016438,2]
[369504530,1751602240393,-1815.39,0.00016438,2]
[369504531,1751602240403,-465.36428456,0.00016438,2]
[369504532,1751602240413,-460.0,0.00016438,2]
[369504533,1751602240422,-460.0,0.00016438,2]
[369504534,1751602240432,-460.0,0.00016438,2]
[369504535,1751602240442,-462.52311051,0.00016438,2]
[369504536,1751602240451,-460.0,0.00016438,2]
[369504537,1751602240461,-470.65,0.00016438,2]
[369504538,1751602240470,-460.68938869,0.00016438,2]
[369504539,1751602240480,-460.0,0.00016438,2]
[369504540,1751602240489,-968.15,0.00016438,2]
[369504541,1751602240499,-460.0,0.00016438,2]
[369504542,1751602240509,-553.14,0.00016438,2]
[369504544,1751602240518,-460.0,0.00016438,2]
[369504546,1751602240528,-673.84,0.00016438,2]
[369504547,1751602240538,-466.77652364,0.00016438,2]
[369504549,1751602240547,-2081.67,0.00016438,2]
[369504551,1751602240557,-460.0,0.00016438,2]
[369504553,1751602240567,-696.75,0.00016438,2]
[369504554,1751602240577,-462.5250356,0.00016438,2]
[369504555,1751602240587,-2216.37,0.00016438,2]
[369504556,1751602240597,-4751.9,0.00016438,2]
[369504557,1751602240607,-460.0,0.00016438,2]
[369504558,1751602240617,-770.36,0.00016438,2]
[369504559,1751602240626,-1085.1,0.00016438,2]
[369504560,1751602240636,-460.0,0.00016438,2]
[369504561,1751602240646,-493.46,0.00016438,2]
[369504562,1751602240656,-460.0,0.00016438,2]
[369504563,1751602240666,-460.0,0.00016438,2]
[369504564,1751602240677,-460.0,0.00016438,2]
[369504565,1751602240686,-460.0,0.00016438,2]
[369504566,1751602240696,-1343.92,0.00016438,2]
[369504567,1751602240709,-688.17,0.00016438,2]
[369504568,1751602240718,-460.0,0.00016438,2]
[369504569,1751602240728,-460.0,0.00016438,2]
[369504570,1751602240738,-1238.86,0.00016438,2]
[369504571,1751602240750,-461.50599162,0.00016438,2]
[369504572,1751602240760,-464.71261845,0.00016438,2]
[369504573,1751602240770,-632.24,0.00016438,2]
[369504574,1751602240781,-460.0,0.00016438,2]
[369504575,1751602240791,-460.0,0.00016438,2]
[369504576,1751602240801,-570.34,0.00016438,2]
[369504577,1751602240811,-460.0,0.00016438,2]
[369504578,1751602240820,-460.0,0.00016438,2]
[369504579,1751602240830,-770.17471178,0.00016491,2]
[369504580,1751602240840,-571.795513,0.00016522,2]
[369504581,1751602240849,-798.67117612,0.00016546,2]
[369504582,1751602240859,-1026.85,0.00016547,2]
[369504583,1751602240868,-460.0,0.00016548,2]
[369504584,1751602240877,-1008.95421674,0.00016548,2]
[369504585,1751602240886,-1909.44,0.00016548,2]
[369504586,1751602240896,-460.0,0.00016548,2]
[369504587,1751602240905,-506.76801874,0.00016548,2]
[369504588,1751602240914,-2212.93,0.00016548,2]
[369504589,1751602240924,-472.1,0.00016548,2]
[369504590,1751602240935,-1102.88,0.00016548,2]
[369504591,1751602240944,-1813.91,0.00016548,2]
[369504592,1751602240955,-936.37,0.00016548,2]
[369504593,1751602240964,-4914.34,0.00016548,2]
[369504594,1751602240974,-792.18,0.00016548,2]
[369504595,1751602240985,-1596.36,0.00016548,2]
[369504596,1751602240995,-646.0,0.00016576,2]
[369504597,1751602241006,-2152.0,0.00016576,2]
[369504598,1751602241015,-881.59663851,0.00016601,2]
[369504599,1751602241025,-2554.39254219,0.00016606,2]
[369504600,1751602241036,-213.97741257,0.0001662,2]
[369504601,1751602241045,-230.40116161,0.0001662,2]
[369504602,1751602241055,-160.0,0.0001662,2]
[369504603,1751602241065,-215.11129906,0.0001662,2]
[369504604,1751602241075,-837.48520791,0.0001662,2]
[369504605,1751602241084,-12578.03337979,0.0001662,2]
[369504606,1751602241095,-160.0,0.0001662,2]
[369504607,1751602241105,-847.91215827,0.0001662,2]
[369504608,1751602241115,-160.0,0.0001662,2]
[369504609,1751602241128,-1026.85,0.00016634,2]
[369504610,1751602241138,-151.738778,0.00016696,2]
[369504611,1751602241148,-151.0,0.0001671,2]
[369504612,1751602241158,-151.0,0.0001671,2]
[369504613,1751602241167,-597.652892,0.0001671,2]
[369504614,1751602241178,-597.652892,0.0001671,2]
[369504615,1751602241188,-1026.85,0.00016711,2]
[369504616,1751602241197,-1026.85,0.00016711,2]
[369504617,1751602241336,-1026.85,0.00016711,2]
[369504618,1751602241347,-1026.85,0.00016711,2]
[369504619,1751602241357,-1026.85,0.00016711,2]
[369504620,1751602241367,-1027.06,0.00016711,2]
[369504621,1751602241376,-152.673379,0.00016712,2]
[369504622,1751602241385,-460.0,0.00016712,2]
[369504623,1751602241394,-338.08647775,0.00016712,2]
[369504624,1751602241404,-460.0,0.00016712,2]
[369504625,1751602241413,-573.66,0.00016712,2]
[369504626,1751602241422,-251.98455751,0.00016712,2]
[369504627,1751602241431,-460.0,0.00016712,2]
[369504628,1751602241441,-460.0,0.00016712,2]
[369504629,1751602241451,-460.0,0.00016712,2]
[369504630,1751602241461,-572.6,0.00016712,2]
[369504631,1751602241470,-460.0,0.00016712,2]
[369504632,1751602241479,-460.0,0.00016712,2]
[369504633,1751602241488,-460.0,0.00016712,2]
[369504634,1751602241498,-460.0,0.00016712,2]
[369504635,1751602241507,-460.0,0.00016712,2]
[369504636,1751602241517,-418.33361715,0.00016712,2]
[369504637,1751602241526,-151.182962,0.00016712,2]
[369504638,1751602241536,-460.0,0.00016712,2]
[369504639,1751602241546,-151.0,0.00016712,2]
[369504640,1751602241555,-663.84,0.00016712,2]
[369504641,1751602241566,-522.78,0.00016712,2]
[369504642,1751602241575,-460.0,0.00016712,2]
[369504643,1751602241585,-1574.72,0.00016712,2]
[369504644,1751602241594,-151.0,0.00016712,2]
[369504645,1751602241604,-464.55282325,0.00016712,2]
[369504646,1751602241614,-460.0,0.00016712,2]
[369504647,1751602241624,-472.152101,0.00016712,2]
[369504648,1751602241633,-151.0,0.00016712,2]
[369504649,1751602241643,-151.0,0.00016712,2]
[369504650,1751602241652,-518.53596,0.00016712,2]
[369504651,1751602241662,-151.0,0.00016712,2]
[369504652,1751602241671,-518.53596,0.00016712,2]
[369504653,1751602241683,-460.0,0.00016712,2]
[369504654,1751602241693,-1300.78,0.00016712,2]
[369504655,1751602241704,-151.0,0.00016712,2]
[369504656,1751602241714,-460.0,0.00016712,2]
[369504657,1751602241724,-151.0,0.00016712,2]
[369504658,1751602241734,-3303.43,0.00016712,2]
[369504659,1751602241743,-460.0,0.00016712,2]
[369504660,1751602241753,-758.5,0.00016712,2]
[369504661,1751602241762,-611.4,0.00016712,2]
[369504662,1751602241772,-1025.93,0.00016712,2]
[369504663,1751602241783,-475.19,0.00016712,2]
[369504664,1751602241792,-460.0,0.00016712,2]
[369504665,1751602241801,-460.0,0.00016712,2]
[369504666,1751602241811,-362.47879656,0.00016712,2]
[369504667,1751602241820,-460.0,0.00016712,2]
[369504668,1751602241830,-714.38,0.00016712,2]
[369504669,1751602241839,-460.0,0.00016712,2]
[369504670,1751602241850,-2892.38,0.00016712,2]
[369504671,1751602241859,-460.0,0.00016712,2]
[369504672,1751602241869,-460.0,0.00016712,2]
[369504673,1751602241879,-2650.48,0.00016712,2]
[369504674,1751602241889,-467.57585546,0.00016712,2]
[369504675,1751602241898,-612.61,0.00016712,2]
[369504676,1751602241907,-580.98,0.00016712,2]
[369504677,1751602241917,-460.0,0.00016712,2]
[369504678,1751602241927,-295.37190981,0.00016712,2]
[369504679,1751602241937,-151.0,0.00016712,2]
[369504680,1751602241946,-1090.47,0.00016712,2]
[369504681,1751602241956,-3588.53,0.00016712,2]
[369504682,1751602241966,-151.0,0.00016712,2]
[369504683,1751602241975,-463.0211996,0.00016712,2]
[369504684,1751602241984,-589.73,0.00016712,2]
[369504685,1751602241993,-531.15,0.00016712,2]
[369504686,1751602242003,-545.72,0.00016712,2]
[369504687,1751602242012,-2245.79,0.00016712,2]
[369504688,1751602242023,-460.0,0.00016712,2]
[369504689,1751602242032,-676.74,0.00016712,2]
[369504690,1751602242041,-1815.39,0.00016712,2]
[369504691,1751602242051,-460.0,0.00016712,2]
[369504692,1751602242060,-151.0,0.00016712,2]
[369504693,1751602242069,-460.0,0.00016712,2]
[369504694,1751602242079,-151.654566,0.00016712,2]
[369504695,1751602242088,-470.65,0.00016712,2]
[369504696,1751602242098,-460.0,0.00016712,2]
[369504697,1751602242107,-968.15,0.00016712,2]
[369504698,1751602242116,-460.0,0.00016712,2]
[369504699,1751602242126,-553.14,0.00016712,2]
[369504700,1751602242135,-460.0,0.00016712,2]
[369504701,1751602242145,-673.84,0.00016712,2]
[369504702,1751602242154,-2081.67,0.00016712,2]
[369504703,1751602242164,-696.75,0.00016712,2]
[369504704,1751602242174,-597.652892,0.00016712,2]
[369504705,1751602242183,-197.301303,0.00016712,2]
[369504706,1751602242193,-597.652892,0.00016712,2]
[369504707,1751602242202,-2216.37,0.00016712,2]
[369504708,1751602242212,-197.301303,0.00016712,2]
[369504709,1751602242222,-4751.9,0.00016712,2]
[369504710,1751602242232,-770.36,0.00016712,2]
[369504711,1751602242242,-205.650061,0.00016712,2]
[369504712,1751602242252,-205.650061,0.00016712,2]
[369504713,1751602242263,-1085.1,0.00016712,2]
[369504714,1751602242272,-493.46,0.00016712,2]
[369504715,1751602242284,-205.650061,0.00016712,2]
[369504716,1751602242293,-205.650061,0.00016712,2]
[369504717,1751602242303,-465.41803378,0.00016712,2]
[369504718,1751602242313,-460.0,0.00016712,2]
[369504719,1751602242322,-460.0,0.00016712,2]
[369504720,1751602242332,-1343.92,0.00016712,2]
[369504721,1751602242342,-688.17,0.00016712,2]
[369504722,1751602242353,-460.0,0.00016712,2]
[369504723,1751602242364,-1238.86,0.00016712,2]
[369504724,1751602242376,-632.24,0.00016712,2]
[369504725,1751602242386,-460.0,0.00016712,2]
[369504726,1751602242395,-570.34,0.00016712,2]
[369504727,1751602242406,-406.0,0.00016736,2]
[369504728,1751602242415,-426.698,0.00016736,2]
[369504729,1751602242426,-151.0,0.00016776,2]
[369504730,1751602242437,-197.301303,0.00016776,2]
[369504731,1751602242447,-197.301303,0.00016776,2]
[369504732,1751602242457,-2851.23417556,0.00016776,2]
[369504733,1751602242467,-151.0,0.00016798,2]
[369504734,1751602242476,-460.0,0.00016822,2]
[369504735,1751602242487,-224.160924,0.00016822,2]
[369504736,1751602242498,-224.160924,0.00016822,2]
[369504737,1751602242507,-151.0,0.00016822,2]
[369504738,1751602242517,-152.335777,0.00016822,2]
[369504739,1751602242526,-151.0,0.00016822,2]
[369504740,1751602242536,-151.0,0.00016822,2]
[369504741,1751602242545,-229.318008,0.00016822,2]
[369504742,1751602242555,-1909.44,0.00016822,2]
[369504743,1751602242564,-250.462863,0.00016822,2]
[369504744,1751602242575,-250.462863,0.00016822,2]
[369504745,1751602242584,-460.0,0.00016822,2]
[369504746,1751602242594,-2212.93,0.00016822,2]
[369504747,1751602242603,-472.1,0.00016822,2]
[369504748,1751602242612,-1102.88,0.00016822,2]
[369504749,1751602242622,-1813.91,0.00016822,2]
[369504750,1751602242632,-936.37,0.00016822,2]
[369504751,1751602242641,-4914.34,0.00016822,2]
[369504752,1751602242651,-792.18,0.00016822,2]
[369504754,1751602242660,-1596.36,0.00016822,2]
[369504755,1751602242669,-168.0,0.00016846,2]
[369504756,1751602242680,-297826.67553434,0.0001686,2]
[369504757,1751602242689,-1096.311,0.0001686,2]
[369504758,1751602242699,-178.091,0.0001686,2]
[369504759,1751602242711,-151.0,0.0001686,2]
[369504760,1751602242721,-208.16800798,0.0001686,2]
[369504761,1751602242730,-168.0,0.0001688,2]
[369504762,1751602242740,-641.0,0.000169,2]
[369504763,1751602242750,-687.45959335,0.00016913,2]
[369504764,1751602242760,-150.0,0.00016932,2]
[369504765,1751602242769,-150.093,0.00016932,2]
[369504767,1751602242779,-150.169,0.00016932,2]
[369504769,1751602242790,-150.0,0.00016932,2]
[369504771,1751602242799,-150.0,0.00016932,2]
[369504773,1751602242808,-967.0,0.00016932,2]
[369504775,1751602242817,-151.0,0.00016932,2]
[369504777,1751602242827,-151.0,0.00016932,2]
[369504779,1751602242836,-151.0,0.00016932,2]
[369504781,1751602242845,-151.0,0.00016932,2]
[369504783,1751602242854,-168.0,0.00016946,2]
[369504785,1751602242863,-222.769653,0.00016985,2]
[369504787,1751602242873,-405.527713,0.00016985,2]
[369504788,1751602242882,-405.527713,0.00016985,2]
[369504790,1751602242891,-151.0,0.00016985,2]
[369504792,1751602242901,-151.0,0.00016985,2]
[369504794,1751602242910,-151.0,0.00016985,2]
[369504796,1751602242919,-151.0,0.00016986,2]
[369504797,1751602242928,-151.0,0.00016986,2]
[369504798,1751602242938,-151.896721,0.00016986,2]
[369504799,1751602242950,-151.0,0.00016986,2]
[369504801,1751602242959,-460.0,0.00016986,2]
[369504803,1751602242968,-573.66,0.00016986,2]
[369504805,1751602242977,-214.91918043,0.00016986,2]
[369504807,1751602242986,-460.0,0.00016986,2]
[369504809,1751602242996,-572.6,0.00016986,2]
[369504811,1751602243006,-163.15289265,0.00016986,2]
[369504813,1751602243016,-663.84,0.00016986,2]
[369504814,1751602243025,-522.78,0.00016986,2]
[369504817,1751602243036,-235.23342145,0.00016986,2]
[369504818,1751602243045,-1574.72,0.00016986,2]
[369504820,1751602243055,-196.3207,0.00016986,2]
[369504822,1751602243065,-151.0,0.00016986,2]
[369504824,1751602243074,-151.0,0.00016986,2]
[369504826,1751602243083,-518.53596,0.00016986,2]
[369504828,1751602243093,-151.0,0.00016986,2]
[369504830,1751602243102,-518.53596,0.00016986,2]
[369504832,1751602243112,-460.0,0.00016986,2]
[369504834,1751602243121,-1300.78,0.00016986,2]
[369504836,1751602243131,-151.0,0.00016986,2]
[369504838,1751602243141,-460.0,0.00016986,2]
[369504840,1751602243150,-151.0,0.00016986,2]
[369504842,1751602243160,-250.462863,0.00016986,2]
[369504844,1751602243169,-250.462863,0.00016986,2]
[369504846,1751602243178,-3303.43,0.00016986,2]
[369504848,1751602243187,-257.91000507,0.00016986,2]
[369504849,1751602243197,-758.5,0.00016986,2]
[369504851,1751602243206,-611.4,0.00016986,2]
[369504853,1751602243215,-1025.93,0.00016986,2]
[369504856,1751602243225,-475.19,0.00016986,2]
[369504858,1751602243234,-460.0,0.00016986,2]
[369504860,1751602243244,-460.0,0.00016986,2]
[369504862,1751602243253,-460.0,0.00016986,2]
[369504864,1751602243262,-714.38,0.00016986,2]
[369504866,1751602243271,-460.0,0.00016986,2]
[369504868,1751602243281,-2892.38,0.00016986,2]
[369504869,1751602243291,-460.0,0.00016986,2]
[369504872,1751602243302,-460.0,0.00016986,2]
[369504874,1751602243312,-2650.48,0.00016986,2]
[369504876,1751602243321,-612.61,0.00016986,2]
[369504878,1751602243331,-580.98,0.00016986,2]
[369504880,1751602243341,-460.0,0.00016986,2]
[369504882,1751602243351,-1090.47,0.00016986,2]
[369504885,1751602243360,-151.0,0.00016986,2]
[369504888,1751602243370,-3588.53,0.00016986,2]
[369504890,1751602243379,-151.0,0.00016986,2]
[369504892,1751602243388,-589.73,0.00016986,2]
[369504894,1751602243398,-531.15,0.00016986,2]
[369504896,1751602243407,-545.72,0.00016986,2]
[369504898,1751602243416,-2245.79,0.00016986,2]
[369504900,1751602243425,-460.0,0.00016986,2]
[369504902,1751602243435,-676.74,0.00016986,2]
[369504904,1751602243445,-1815.39,0.00016986,2]
[369504905,1751602243454,-460.0,0.00016986,2]
[369504907,1751602243463,-572.97789392,0.00016986,2]
[369504909,1751602243472,-151.0,0.00016986,2]
[369504912,1751602243482,-470.65,0.00016986,2]
[369504914,1751602243491,-460.0,0.00016986,2]
[369504916,1751602243501,-968.15,0.00016986,2]
[369504918,1751602243510,-460.0,0.00016986,2]
[369504920,1751602243520,-553.14,0.00016986,2]
[369504922,1751602243529,-460.0,0.00016986,2]
[369504924,1751602243539,-673.84,0.00016986,2]
[369504926,1751602243549,-2081.67,0.00016986,2]
[369504928,1751602243558,-696.75,0.00016986,2]
[369504930,1751602243568,-597.652892,0.00016986,2]
[369504932,1751602243577,-197.301303,0.00016986,2]
[369504934,1751602243587,-597.652892,0.00016986,2]
[369504936,1751602243596,-2216.37,0.00016986,2]
[369504938,1751602243606,-4751.9,0.00016986,2]
[369504940,1751602243615,-197.301303,0.00016986,2]
[369504942,1751602243625,-770.36,0.00016986,2]
[369504944,1751602243634,-205.650061,0.00016986,2]
[369504946,1751602243644,-1085.1,0.00016986,2]
[369504948,1751602243654,-493.46,0.00016986,2]
[369504950,1751602243664,-205.650061,0.00016986,2]
[369504952,1751602243673,-460.0,0.00016986,2]
[369504954,1751602243684,-1343.92,0.00016986,2]
[369504955,1751602243694,-688.17,0.00016986,2]
[369504957,1751602243704,-460.0,0.00016986,2]
[369504959,1751602243716,-1238.86,0.00016986,2]
[369504960,1751602243725,-632.24,0.00016986,2]
[369504961,1751602243734,-460.0,0.00016986,2]
[369504962,1751602243744,-570.34,0.00016986,2]
[369504963,1751602243754,-224.160924,0.00017096,2]
[369504964,1751602243764,-224.160924,0.00017096,2]
[369504965,1751602243774,-151.0,0.00017096,2]
[369504966,1751602243784,-151.0,0.00017096,2]
[369504967,1751602243794,-287.810627,0.00017096,2]
[369504968,1751602243803,-1909.44,0.00017096,2]
[369504969,1751602243813,-460.0,0.00017096,2]
[369504970,1751602243824,-2212.93,0.00017096,2]
[369504971,1751602243833,-472.1,0.00017096,2]
[369504972,1751602243843,-1102.88,0.00017096,2]
[369504973,1751602243852,-1813.91,0.00017096,2]
[369504974,1751602243861,-936.37,0.00017096,2]
[369504975,1751602243871,-4914.34,0.00017096,2]
[369504976,1751602243881,-792.18,0.00017096,2]
[369504977,1751602243891,-1596.36,0.00017096,2]
[369504978,1751602243903,-208.49331565,0.00017141,2]
[369504979,1751602243914,-2485.2576444,0.00017141,2]
[369504980,1751602243924,-504.48467396,0.00017141,2]
[369504981,1751602243934,-500.0,0.00017141,2]
[369504982,1751602243944,-500.0,0.00017141,2]
[369504983,1751602244071,-500.0,0.00017141,2]
[369504984,1751602244083,-500.0,0.00017141,2]
[369504985,1751602244094,-500.0,0.00017141,2]
[369504986,1751602244106,-151.0,0.00017141,2]
[369504987,1751602244117,-286.1096,0.00017141,2]
[369504988,1751602244126,-597.652892,0.00017141,2]
[369504989,1751602244136,-597.652892,0.00017141,2]
[369504990,1751602244146,-500.0,0.00017195,2]
[369504991,1751602244155,-500.0,0.00017195,2]
[369504992,1751602244164,-508.03928043,0.00017195,2]
[369504993,1751602244174,-500.0,0.00017195,2]
[369504994,1751602244184,-500.0,0.00017195,2]
[369504995,1751602244194,-500.0,0.00017195,2]
[369504996,1751602244203,-500.0,0.00017195,2]
[369504997,1751602244213,-500.0,0.00017195,2]
[369504998,1751602244223,-500.70200523,0.00017195,2]
[369504999,1751602244232,-429.39091571,0.00017195,2]
[369505000,1751602244242,-500.0,0.00017195,2]
[369505001,1751602244252,-500.0,0.00017195,2]
[369505002,1751602244261,-500.0,0.00017195,2]
[369505003,1751602244270,-500.0,0.00017195,2]
[369505004,1751602244280,-500.0,0.00017195,2]
[369505005,1751602244289,-500.0,0.00017195,2]
[369505006,1751602244300,-500.0,0.00017195,2]
[369505007,1751602244310,-500.0,0.00017195,2]
[369505008,1751602244321,-151.0,0.000172,2]
[369505009,1751602244330,-154.11800621,0.00017233,2]
[369505010,1751602244341,-701.228827,0.00017259,2]
[369505011,1751602244350,-701.228827,0.00017259,2]
[369505012,1751602244360,-151.0,0.00017259,2]
[369505013,1751602244369,-151.0,0.00017259,2]
[369505014,1751602244379,-151.0,0.0001726,2]
[369505015,1751602244389,-283.935742,0.0001726,2]
[369505016,1751602244400,-151.0,0.0001726,2]
[369505017,1751602244409,-151.0,0.0001726,2]
[369505018,1751602244420,-460.0,0.0001726,2]
[369505019,1751602244430,-224.160924,0.0001726,2]
[369505020,1751602244442,-224.160924,0.0001726,2]
[369505021,1751602244451,-573.66,0.0001726,2]
[369505022,1751602244462,-151.0,0.0001726,2]
[369505023,1751602244473,-460.0,0.0001726,2]
[369505024,1751602244483,-572.6,0.0001726,2]
[369505025,1751602244492,-663.84,0.0001726,2]
[369505026,1751602244503,-405.527713,0.0001726,2]
[369505027,1751602244513,-522.78,0.0001726,2]
[369505028,1751602244523,-405.527713,0.0001726,2]
[369505029,1751602244534,-151.0,0.0001726,2]
[369505030,1751602244543,-151.0,0.0001726,2]
[369505031,1751602244553,-1574.72,0.0001726,2]
[369505032,1751602244563,-151.0,0.0001726,2]
[369505033,1751602244573,-222.406778,0.0001726,2]
[369505034,1751602244583,-518.53596,0.0001726,2]
[369505035,1751602244593,-151.0,0.0001726,2]
[369505036,1751602244603,-518.53596,0.0001726,2]
[369505037,1751602244612,-460.0,0.0001726,2]
[369505038,1751602244622,-1300.78,0.0001726,2]
[369505039,1751602244631,-151.0,0.0001726,2]
[369505040,1751602244641,-460.0,0.0001726,2]
[369505041,1751602244650,-151.230874,0.0001726,2]
[369505042,1751602244660,-250.462863,0.0001726,2]
[369505043,1751602244669,-3303.43,0.0001726,2]
[369505044,1751602244679,-250.462863,0.0001726,2]
[369505045,1751602244689,-758.5,0.0001726,2]
[369505046,1751602244698,-611.4,0.0001726,2]
[369505047,1751602244712,-1025.93,0.0001726,2]
[369505048,1751602244722,-475.19,0.0001726,2]
[369505049,1751602244731,-460.0,0.0001726,2]
[369505050,1751602244740,-210.25934394,0.0001726,2]
[369505051,1751602244751,-460.0,0.0001726,2]
[369505052,1751602244760,-714.38,0.0001726,2]
[369505053,1751602244770,-460.0,0.0001726,2]
[369505054,1751602244780,-2892.38,0.0001726,2]
[369505055,1751602244790,-460.0,0.0001726,2]
[369505056,1751602244800,-460.0,0.0001726,2]
[369505057,1751602244810,-2650.48,0.0001726,2]
[369505058,1751602244820,-612.61,0.0001726,2]
[369505059,1751602244829,-580.98,0.0001726,2]
[369505060,1751602244839,-460.0,0.0001726,2]
[369505061,1751602244848,-151.0,0.0001726,2]
[369505062,1751602244858,-1090.47,0.0001726,2]
[369505063,1751602244867,-3588.53,0.0001726,2]
[369505064,1751602244877,-589.73,0.0001726,2]
[369505065,1751602244886,-531.15,0.0001726,2]
[369505066,1751602244895,-545.72,0.0001726,2]
[369505067,1751602244904,-2245.79,0.0001726,2]
[369505068,1751602244914,-460.0,0.0001726,2]
[369505069,1751602244923,-676.74,0.0001726,2]
[369505070,1751602244932,-1815.39,0.0001726,2]
[369505071,1751602244941,-460.0,0.0001726,2]
[369505072,1751602244951,-151.0,0.0001726,2]
[369505073,1751602244960,-470.65,0.0001726,2]
[369505074,1751602244969,-460.0,0.0001726,2]
[369505075,1751602244978,-968.15,0.0001726,2]
[369505076,1751602244987,-460.0,0.0001726,2]
[369505077,1751602244996,-553.14,0.0001726,2]
[369505078,1751602245006,-460.0,0.0001726,2]
[369505079,1751602245015,-673.84,0.0001726,2]
[369505080,1751602245024,-2081.67,0.0001726,2]
[369505081,1751602245034,-696.75,0.0001726,2]
[369505082,1751602245043,-597.652892,0.0001726,2]
[369505083,1751602245052,-197.301303,0.0001726,2]
[369505084,1751602245062,-2216.37,0.0001726,2]